Cogmind - Beta 17 @@@ ROGUE MODE // 2026.06.26 @ 11:45:44 Player: VC94 Result: Destroyed by Y-45 Defender with Beam Rifle Performance ------------- Evolutions (2) 1000 Regions Visited (4) 800 Robots Destroyed (73) 365 Value Destroyed (2063) 2063 Prototype IDs (8) 160 Alien Tech Used (0) 0 Bonus (207) 207 TOTAL SCORE: 4595 Bonus ------- Follower Combat Kills 207 Cogmind --------- Core Integrity 0/550 Matter 262/300 Energy 278/280 System Corruption 0% Temperature Cool (34) Movement Rolling (80) Location -8/Materials Parts ------- > --- POWER (1) -------- Heavy Ion Engine > --- PROPULSION (4) --- Wheel Wheel Wheel Wheel > --- UTILITY (4) ------ Medium Storage Unit Machine Analyzer Improved Targeting Computer Reactive Plating > --- WEAPON (2) ------- Field Laser Assault Rifle > --- INVENTORY (10) --- Heavy Ion Engine Improved Aluminum Leg Visual Processing Unit Sensor Array Improved Signal Interpreter Relay Coupler [NC] (18) Recalibrator Peak State ------------ > --- POWER ------------ Heavy Ion Engine > --- PROPULSION ------- Aluminum Leg Carbon-fiber Leg Carbon-fiber Leg > --- UTILITY ---------- Medium Storage Unit Sensor Array Hardened Medium Armor Plating Hacking Suite > --- WEAPON ----------- Missile Launcher > --- INVENTORY -------- Heavy Ion Engine Heavy Ion Engine Visual Processing Unit Sensor Array Relay Coupler [NC] [Rating: 22] Favorites ----------- Power Improved Ion Engine Engine Improved Ion Engine Propulsion Aluminum Leg Treads Light Treads Leg Aluminum Leg Wheel Wheel Utility Hacking Suite Device Sensor Array Storage Medium Storage Unit Processor Improved Targeting Computer Hackware Hacking Suite Protection Hardened Medium Armor Plating Weapon Datajack Energy Gun EM Pulse Gun Energy Cannon EM Pulse Cannon Ballistic Gun Assault Rifle Ballistic Cannon Improved Light Cannon Launcher Missile Launcher Special Melee Weapon Datajack Build | -11 -10 -9 -9 -8 ------- Run | Yrd Mat Mat Sto Mat Slots Evolved 4 | . . 2 . 2 Power . | . . . . . Propulsion 2 | . . 1 . 1 Utility 2 | . . 1 . 1 Weapon . | . . . . . Parts Attached 70 | 6 9 22 13 20 Power 9 | 1 2 1 3 2 Engine 9 | 1 2 1 3 2 Core . | . . . . . Reactor . | . . . . . Propulsion 29 | 2 2 10 7 8 Treads 4 | . . 4 . . Leg 21 | 2 2 6 7 4 Wheel 4 | . . . . 4 Hover . | . . . . . Flight . | . . . . . Utility 13 | 1 2 3 1 6 Device 2 | . . 1 . 1 Storage 2 | 1 1 . . . Processor 3 | . . . . 3 Hackware 1 | . 1 . . . Protection 5 | . . 2 1 2 Artifact . | . . . . . Weapon 19 | 2 3 8 2 4 Energy Gun 3 | 1 . 1 . 1 Energy Cannon 3 | . . 2 . 1 Ballistic Gun 4 | 1 2 . . 1 Ballistic Cannon 4 | . . 2 2 . Launcher 1 | . . . . 1 Special Weapon . | . . . . . Impact Weapon . | . . . . . Slashing Weapon . | . . . . . Piercing Weapon . | . . . . . Special Melee Weapon 4 | . 1 3 . . Unidentified Prototypes . | . . . . . Parts Lost 31 | . 3 5 6 17 Power 4 | . 1 1 2 . Propulsion 10 | . . 2 1 7 Utility 6 | . . . . 6 Weapon 11 | . 2 2 3 4 Highest Loss Streak 8 | . 2 2 2 8 To Critical Strikes 1 | . . . . 1 Average Backups 7 | 2 3 8 8 6 Power 1 | 1 1 1 . 1 Propulsion 1 | . 1 1 2 . Utility 2 | . . 2 4 3 Weapon . | . . . . . Tool/Special . | . . . . . Unused Backups 8 | . . 5 . 3 Power 1 | . . 1 . . Propulsion . | . . . . . Utility 5 | . . 2 . 3 Weapon 2 | . . 2 . . Tool/Special . | . . . . . Average Slot Usage (%) 95 | . 98 97 97 77 Engine 11 | . 14 10 10 9 Treads 3 | . . 7 2 . Leg 26 | . 27 24 30 19 Device 2 | . . 4 . 6 Storage 11 | . 14 11 11 9 Hackware 10 | . 12 11 11 6 Protection 6 | . . 6 11 6 Energy Gun 1 | . 3 . . 2 Energy Cannon 3 | . . 9 1 . Ballistic Gun 4 | . 17 3 . 1 Ballistic Cannon 4 | . . 1 9 3 Special Melee Weapon 7 | . 6 6 10 3 Peak Build Rating 22 | 6 10 19 17 22 Average Rating 14 | 3 9 15 16 16 On Entrance 9 | . 6 10 16 17 Avg Prop Armor Cover (%) 6 | . . . . 6 Naked Turns . | . . . . . Heaviest Build 37 | 11 20 37 33 33 Greatest Support 60 | 20 20 60 60 40 Greatest Overweight (x) 10 | 3 1 1 2 10 Average Overweight (x) . | . . . . . Largest Inventory Capacity 10 | 8 10 10 10 10 Average Capacity 9 | 7 9 10 10 10 Most Carried 10 | 5 5 10 10 9 Average Carried 7 | 2 3 8 8 6 Final Capacity 10 | 8 10 10 10 10 Final Carried 10 | 2 5 9 10 7 Class Distribution -------------------- 51% | Mutant 36% | Scavenger-Mutant 12% | Commander-Mutant Dominant Class ---------------- Mutant | -10/Materials Scavenger-Mutant | -9/Materials Mutant | -9/Storage Scavenger-Mutant | -8/Materials Resources | -11 -10 -9 -9 -8 ----------- Run | Yrd Mat Mat Sto Mat Matter Collected 1786 | 201 238 576 466 305 Remotely . | . . . . . Salvage Created 2431 | . 305 1003 500 623 Parts 156 | . 24 62 40 30 Haulers Intercepted 1 | . . 1 . . Recyclers Shooed 8 | . 2 2 . 4 Parts Field Recycled . | . . . . . Retrieved Matter . | . . . . . Parts Self-Destructed . | . . . . . Prevented . | . . . . . Parts Restored . | . . . . . Kills | -11 -10 -9 -9 -8 ------- Run | Yrd Mat Mat Sto Mat Combat Hostiles Destroyed 56 | . 9 23 13 11 Guns 19 | . 9 6 . 4 Cannons 29 | . . 12 13 4 AOE 6 | . . 3 . 3 Classes Destroyed 14 | . 4 5 1 4 Worker 5 | . 1 . 2 2 Builder 4 | . . 1 1 2 Tunneler 1 | . . . . 1 Hauler 1 | . . 1 . . Recycler 2 | . . . . 2 Mechanic 1 | . . . . 1 Operator 2 | . 1 . 1 . Watcher 1 | . . . 1 . Swarmer 13 | . 4 4 2 3 Grunt 25 | . 5 11 2 7 Brawler 1 | . . 1 . . Duelist 1 | . . 1 . . Sentry 15 | . . 6 9 . Hunter 1 | . . . . 1 Best Kill Streak 8 | . 4 6 6 8 Combat Bots Only 7 | . 4 5 3 7 Max Kills in Single Turn 2 | . 1 2 1 2 Gunslinging . | . . . . . Exploded 2 | . . 2 . 2 Melee . | . . . . . Uniques/NPCs Destroyed . | . . . . . Combat | -11 -10 -9 -9 -8 -------- Run | Yrd Mat Mat Sto Mat Hostile Shots Fired 474 | . 79 122 117 156 Missed 141 | . 21 34 47 39 Hits 333 | . 58 88 70 117 Melee 1 | . . 1 . . Projectile 332 | . 58 87 70 117 Critical Strikes 10 | . . 3 1 6 Damage Taken 4653 | . 530 1157 1153 1813 Core 905 | . 118 125 103 559 Absorbed by Shields . | . . . . . Ignored by Resistances 43 | . . . . 43 Regen/Repaired (Parts) 77 | . . 14 63 . Core Remaining (%) 65 | 100 52 . 43 . Volleys Fired 238 | . 53 71 59 55 Largest 2 | . 2 2 2 2 Hottest 126 | . 40 126 66 96 Shots Fired 337 | . 62 116 70 89 Gun 163 | . 62 40 . 61 Cannon 170 | . . 76 70 24 Launcher 4 | . . . . 4 Special . | . . . . . Kinetic 208 | . 48 58 63 39 Thermal 37 | . . 2 . 35 Explosive 4 | . . . . 4 Electromagnetic 88 | . 14 56 7 11 Robot Hit Streak 22 | . 12 16 22 14 Robot Miss Streak 4 | . 4 4 2 2 Penetration Max . | . . . . . Secondary Targets 3 | . 2 . . 1 Max Gunslinging Chain 1 | . 1 . . 1 Shots Hit Robots 255 | . 45 81 64 65 Core Hits 102 | . 20 33 21 28 Critical Kills . | . . . . . Critical Parts Destroyed 2 | . 1 1 . . Critical Strikes 8 | . 1 2 2 3 Burn 2 | . . . . 2 Destroy 2 | . 1 1 . . Blast 3 | . . . 2 1 Corrupt 1 | . . 1 . . Melee Attacks 26 | . 4 8 11 3 Impact . | . . . . . Slashing . | . . . . . Piercing . | . . . . . Sneak Attacks 22 | . 4 7 10 1 Combat Hostiles . | . . . . . Follow-up Attacks . | . . . . . Damage Inflicted 4966 | . 501 1586 1171 1708 Guns 1475 | . 501 322 . 652 Cannons 2725 | . . 1116 1136 473 Explosions 763 | . . 148 35 580 Melee . | . . . . . Ramming 3 | . . . . 3 Kinetic 2338 | . 381 525 1011 421 Thermal 684 | . . 184 35 465 Explosive 580 | . . . . 580 Electromagnetic 1361 | . 120 877 125 239 Impact . | . . . . . Slashing . | . . . . . Piercing . | . . . . . Highest Corruption 1 | . . 1 1 . Average Corruption 1 | . . 1 1 . Corruption Purged . | . . . . . Corruption Blocked . | . . . . . Effects 28 | . . 12 16 . Message Errors 6 | . . 2 4 . Matter Fused 6 | . . 3 3 . Heat Flow Errors 1 | . . 1 . . Energy Discharges 5 | . . 2 3 . Parts Rejected 1 | . . . 1 . Data Loss (minor) 3 | . . 1 2 . Data Loss (major) 2 | . . 1 1 . Misfires 2 | . . . 2 . Alerts 1 | . . 1 . . Weapon Failures 1 | . . 1 . . Overload Shots . | . . . . . Overflow Damage 73 | . . 42 . 31 Projectiles 36 | . . 36 . . Explosions 37 | . . 6 . 31 Melee . | . . . . . Knockbacks 8 | . . 2 2 4 Impact . | . . . . . Kinetic 7 | . . 2 2 3 Secondary 1 | . . . . 1 Self-Inflicted Damage 174 | . . 39 37 98 Shots 6 | . . 1 1 4 Rammed . | . . . . . Targets Rammed 1 | . . . . 1 Kicked 1 | . . . . 1 Crushed . | . . . . . Highest Temperature 394 | . 12 262 133 394 Average Temperature 74 | . 9 78 33 97 Received Heat Transfer 1626 | . 126 531 375 594 Effects 4 | . . 1 . 3 Shutdowns 1 | . . . . 1 Energy Bleed 2 | . . . . 2 Interference 1 | . . 1 . . Siege Activations . | . . . . . Martial Activations . | . . . . . Shielding Activations . | . . . . . Robots Disrupted . | . . . . . Combat Hostiles . | . . . . . Robots Corrupted 2 | . . 2 . . Combat Hostiles 2 | . . 2 . . Parts Fried 7 | . . 7 . . Impact Corruptions . | . . . . . Robots Melted . | . . . . . Combat Hostiles . | . . . . . Parts Melted . | . . . . . Heat Transferred 1571 | . . 374 50 1147 Parts Sabotaged . | . . . . . Parts Stolen . | . . . . . Parts Stripped . | . . . . . Power Chain Reactions 4 | . . 3 1 . Alert | -11 -10 -9 -9 -8 ------- Run | Yrd Mat Mat Sto Mat Maximum Alert Level 1 | . . . 1 . Low Security (%) 95 | 100 100 100 87 100 Level 1 4 | . . . 12 . Level 2 . | . . . . . Level 3 . | . . . . . Level 4 . | . . . . . Level 5 . | . . . . . High Security . | . . . . . Max Security . | . . . . . Peak Influence 299 | . 117 190 299 142 Initial 114 | . . . 69 114 Average 63 | . 28 65 82 60 Influence Increases 2289 | . 339 700 774 476 Destroy 0b10 Robot/C 1300 | . 180 460 380 280 Destroy 0b10 Robot/NC 90 | . 10 10 30 40 Destroy Leader 354 | . 40 122 142 50 Allied During Kill 92 | . . . 82 10 Successful Hack 100 | . 4 30 66 . Disable Machine 45 | . 30 . . 15 Destroy Structure 53 | . . 18 14 21 Partial Spotted 15 | . . . 15 . Lose Combat Pursuer 240 | . 75 60 45 60 Influence Decreases 2213 | . 339 534 669 671 Entered New Map 254 | . . . 97 157 Time Decay 1632 | . 324 484 531 293 Lost Part 267 | . 15 50 41 161 Lost Ally 60 | . . . . 60 Squads Dispatched 10 | . 4 1 2 3 Investigation 3 | . 1 . 1 1 Extermination . | . . . . . Reinforcement 7 | . 3 1 1 2 Assault . | . . . . . Garrison . | . . . . . Intercept . | . . . . . Searches Triggered . | . . . . . Construction Impeded . | . . . . . Haulers Reinforced . | . . . . . Active Scanning Responses . | . . . . . Cargo Convoy Interrupts . | . . . . . Stealth | -11 -10 -9 -9 -8 --------- Run | Yrd Mat Mat Sto Mat Distress Signals 8 | . 1 5 1 1 Communications Jammed . | . . . . . Distress Signals . | . . . . . Times Spotted 122 | . 28 39 28 27 Peak Tracking Total 7 | . 7 6 3 7 Tactical Retreats 14 | . 4 4 3 3 Traps | -11 -10 -9 -9 -8 ------- Run | Yrd Mat Mat Sto Mat Traps Triggered 9 | . 4 1 4 . Indirectly . | . . . . . Trap Hack Attempts . | . . . . . Triggered . | . . . . . Disarmed . | . . . . . Reprogrammed . | . . . . . Reused . | . . . . . Traps Extracted . | . . . . . Installed . | . . . . . Triggered . | . . . . . Machines | -11 -10 -9 -9 -8 ---------- Run | Yrd Mat Mat Sto Mat Machines Disabled 3 | . 2 . . 1 Max in Single Turn 1 | . 1 . . 1 Garrison Access 1 | . . . 1 . Machines Repaired . | . . . . . Machines Dismantled . | . . . . . Machines Sabotaged . | . . . . . Overloaded Fab Kills . | . . . . . Hacking | -11 -10 -9 -9 -8 --------- Run | Yrd Mat Mat Sto Mat Machines Accessed 25 | . 3 6 13 3 Terminals 20 | . 3 4 10 3 Fabricators . | . . . . . Repair Stations 3 | . . 1 2 . Recycling Units . | . . . . . Scanalyzers 1 | . . 1 . . Garrison Access 1 | . . . 1 . Total Hacks 62 | . 4 14 37 7 Successful 41 | . 4 10 22 5 Failed 21 | . . 4 15 2 Catastrophic 2 | . . . 2 . Database Lockouts . | . . . . . Manual . | . . . . . Terminals 49 | . 4 9 29 7 Fabricators . | . . . . . Repair Stations 10 | . . 3 7 . Recycling Units . | . . . . . Scanalyzers 2 | . . 2 . . Garrison Access 1 | . . . 1 . Terminal Hacks 33 | . 4 6 18 5 Record 11 | . 1 2 5 3 Part Schematic 2 | . . . 2 . Prototype ID Bank 4 | . 1 2 1 . Open Door 4 | . . . 4 . Branch Access Points 3 | . . 1 1 1 Emergency Access Points 1 | . 1 . . . Scanalyzer Index 2 | . . 1 1 . Locate Traps 3 | . 1 . 2 . Hauler Manifests 1 | . . . . 1 Registered Components 1 | . . . 1 . Registered Prototypes 1 | . . . 1 . Fabricator Hacks . | . . . . . Repair Station Hacks 5 | . . 2 3 . Scan Component 3 | . . 1 2 . Repair 2 | . . 1 1 . Recycling Unit Hacks . | . . . . . Scanalyzer 2 | . . 2 . . Insert Component 2 | . . 2 . . Garrison Access Hacks 1 | . . . 1 . Seal Access 1 | . . . 1 . Unauthorized Hacks . | . . . . . Terminals . | . . . . . Fabricators . | . . . . . Repair Stations . | . . . . . Recycling Units . | . . . . . Scanalyzers . | . . . . . Garrison Access . | . . . . . Data Cores Recovered . | . . . . . Used . | . . . . . Hacking Detections 17 | . 3 2 9 3 Full Trace Events 3 | . . . 2 1 Feedback Events . | . . . . . Feedback Blocked . | . . . . . Robot Schematics Acquired . | . . . . . Robots Built . | . . . . . Authchips . | . . . . . Time . | . . . . . Total Robot Build Rating . | . . . . . Part Schematics Acquired 2 | . . . 2 . Parts Built . | . . . . . Authchips . | . . . . . Time . | . . . . . Total Part Build Rating . | . . . . . Part Studies Acquired . | . . . . . Parts Repaired 2 | . . 1 1 . Time 48 | . . 26 22 . Parts Recycled . | . . . . . Recycled Matter . | . . . . . Retrieved Matter . | . . . . . Retrieved Components . | . . . . . Parts Scanalyzed . | . . . . . Part Schematics Acquired . | . . . . . Parts Damaged . | . . . . . Bothacking | -11 -10 -9 -9 -8 ------------ Run | Yrd Mat Mat Sto Mat Used RIF Installer . | . . . . . Robots Hacked 16 | . 3 5 7 1 Non-combat 16 | . 3 5 7 1 Combat . | . . . . . Robot Hacks Applied 19 | . 4 6 8 1 no_distress 19 | . 4 6 8 1 Relay Couplers Released 1 | . . . 1 . Machine Destruction 1 | . . . 1 . Fabnet Peak Effective % . | . . . . . Robots Rewired 1 | . . . 1 . Allies Hacked . | . . . . . Hacks Repelled . | . . . . . Allies | -11 -10 -9 -9 -8 -------- Run | Yrd Mat Mat Sto Mat Total Allies 10 | . . . 10 . Largest Group 10 | . . . 10 4 Highest-Rated Group 88 | . . . 88 40 Highest-Rated Ally 16 | . . . 16 16 Total Orders . | . . . . . Ally Attacks 79 | . . . 33 46 Total Damage 684 | . . . 262 422 Kills 9 | . . . 6 3 Allies Corrupted . | . . . . . Allies Melted . | . . . . . Intel | -11 -10 -9 -9 -8 ------- Run | Yrd Mat Mat Sto Mat Active Infowar (turns) 1244 | . . 655 . 589 Sensors 1146 | . . 655 . 491 Machine Analysis 98 | . . . . 98 Robot Analysis Total . | . . . . . Derelict Logs Recovered . | . . . . . Drone Launches . | . . . . . Drone Recoveries . | . . . . . Exploration | -11 -10 -9 -9 -8 ------------- Run | Yrd Mat Mat Sto Mat Turns Passed 5706 | 54 1141 1752 2073 686 Spaces Moved 3268 | 41 779 890 1205 353 Core 44 | 18 . . . 26 Treads 278 | . . 206 72 . Legs 2900 | 23 779 684 1133 281 Wheels 46 | . . . . 46 Hover . | . . . . . Flight . | . . . . . Fastest Speed 50 | 50 120 120 120 80 Average Speed 142 | 100 120 153 149 141 Slowest Speed 550 | 200 190 240 260 550 Overloaded Moves . | . . . . . Propulsion Burnouts . | . . . . . Robots Hopped . | . . . . . Potential Cave-ins . | . . . . . Cave-ins Triggered . | . . . . . Exploration Rate (%) 50 | 3 78 54 90 25 Regions Visited 4 Branch Regions 1 Pre-discovered Areas . | . . . . . Known Exits Taken 1 | . . 1 . . Unknown Exits Taken 3 | 1 1 . 1 . Scrap Searched . | . . . . . Spaces Dug . | . . . . . Terrain Destroyed 49 | . . 16 10 23 Melee . | . . . . . Projectile 5 | . . 1 4 . AOE 44 | . . 15 6 23 Terrain Rammed . | . . . . . Walls Destroyed . | . . . . . Machines Disabled . | . . . . . Actions | -11 -10 -9 -9 -8 --------- Run | Yrd Mat Mat Sto Mat Total 3969 | 54 918 1151 1402 444 Wait 260 | . 52 119 86 3 Move 3264 | 40 778 889 1204 353 Hop . | . . . . . Pick Up 44 | 8 9 16 7 4 Fast Attach 34 | . 7 7 6 14 Attach 30 | 6 7 5 6 6 Detach 3 | . 1 1 . 1 Swap 34 | . 2 19 11 2 Drop 30 | . 5 16 7 2 Fire 238 | . 53 71 59 55 Melee 26 | . 4 8 11 3 Ram . | . . . . . Kick 1 | . . . . 1 Crush . | . . . . . Escape Stasis 5 | . . . 5 . Rewire . | . . . . . Trap . | . . . . . Miscellaneous . | . . . . . Route ------- -11/Scrapyard -10/Materials (discovered 3 exits: *Mat x2 / [*Min]) -9/Materials (discovered 4 exits: *Mat / *Min x2 / *Sto) -9/Storage (discovered 2 exits: *Mat / Rec) -8/Materials History --------- Turn | Location | Event 9 | -11/Scrapyard | Discovered new exit (range 16) 55 | -11/Scrapyard | Entered Materials 318 | -10/Materials | Build established: Mutant 673 | -10/Materials | Discovered new exit (range 5) 886 | -10/Materials | Discovered new exit (range 10) 996 | -10/Materials | Discovered new exit (range 14) 1196 | -10/Materials | Entered another Materials area 1196 | -9/Materials | Evolved 2 slots: Propulsion x1, Utility x1 1757 | -9/Materials | Identified exit to Mines 1757 | -9/Materials | Identified exit to Storage 1874 | -9/Materials | Build established: Scavenger-Mutant 2210 | -9/Materials | Discovered new exit (range 16) 2483 | -9/Materials | Repaired Sensor Array 2948 | -9/Materials | Entered Storage 3285 | -9/Storage | Repaired Broken Imp. Ion Engine 3367 | -9/Storage | Build established: Mutant 4098 | -9/Storage | Core integrity fell below 50% 4163 | -9/Storage | Discovered new exit (range 13) 4306 | -9/Storage | Assisted by bots powering up and referring to "LRC-V3" 4308 | -9/Storage | Identified exit to Recycling 4604 | -9/Storage | Build established: Commander-Mutant 5021 | -9/Storage | Entered Materials 5021 | -8/Materials | Accompanied by 4 allies 5021 | -8/Materials | Evolved 2 slots: Propulsion x1, Utility x1 5295 | -8/Materials | Lost 3 allies 5302 | -8/Materials | Lost 3 parts (1n1u1w) 5371 | -8/Materials | Destroyed 7 combat bots 5381 | -8/Materials | Lost 8 parts (4n1u3w) 5469 | -8/Materials | Core integrity fell below 50% 5525 | -8/Materials | Core integrity fell below 20% 5560 | -8/Materials | Lost 4 parts (4u) 5707 | -8/Materials | Destroyed by Y-45 Defender with Beam Rifle Last Messages --------------- 05653_ R-06 Scavenger destroyed. 05656_ R-06 Scavenger collects Terrain Scan Processor. 05662_ R-06 Scavenger suffers critical hit (Burn). 05666_ Acquired 21 matter. 05668_ Acquired Wheel. 05671_ Destroyed Welding Torch. 05686_ O-24 Administrator: "IFF HANDSHAKE FAILED. SECURING TERMINAL." 05688_ Acquired Imp. Signal Interpreter. 05689_ ALERT: Hostiles spotted, dispatching reinforcements to Terminal M006. 05689_ S-10 Pest destroyed. 05692_ Switching to secondary target: S-10 Pest. 05696_ ALERT: Suspicious intruders detected, dispatching Cutter reinforcements to area. [Achievement: Heavy Suspicion] 05698_ S-10 Pest destroyed. 05707_ Critical hit (Burn: +37). Map ----- +----------------------------------------------------+ | # #???####+### #???????????????????????????????? | | #%#???# # #???????????????????????????????? | | ##??# "" # #???????????????????????????????? | | #### "T" # %########????????????????????????? | | " # # #????????????????????????? | | * !#### # % " #????????????????????????? | | #= #??# !# % # #????????????????????????? | | #!##??###+#### # """ #????????????????????????? | | # #?????? ???# # """ #????????????????????????? | | # #?????? ???# # """ #????????????????????????? | | # #?????? ???#% ########????????????????????????? | | # ####### ???# #?######????????????????????????? | | # ???# #? ????????????????????????? | | / #??#% # """ ""????????????????????????? | | # #??# # """ ""??########??????????????? | | # """ #??# + """ ""??# ??????????????? | | # """ #??# # # ???????????????? | | # """ #?## %########### ???????????????? | | # #?# # #?# ????????????????? | | ### # #?# ????????????????? | | + "" #?# ?????????????????? | | ######+### # Y" #?# ?????????????????? | | ???????# % ## # "" #?? ??????????????????? | | ???????# %%#### ### #?? ??????????????????? | | ???????# *%#### #############+#######????????????? | | ???????# !!+% ! + @ #????????????? | | ???????#! !#=!= ####### %= #????????????? | | ???????# #= #?????# """""=%Y[ #????????????? | | ?????? +! + + T???# """""""""%= #????????????? | | ?????####### #? !?# """ """ * #????????????? | | ???????????# #??? # r a #????????????? | | ???????????# #?????#########/#####????????????? | | ??????????? ##+#????????????? ????????????????? | | ?????????? #???????????????? ????????????????? | | ?????????[[ ????????????????? ???????????????? | | ?????????[[ ?????????????????###????????????????? | | ????????[[[ ????????????????????????????????????? | | ??????? ????????????????????????????????????? | | ???????? ????????????????????????????????????? | | ??????????+##????????????????????????????????????? | | ?????????????????????????????????????????????????? | | ????????????????????????????????"T"??????????????? | | ????????????????????????????????"""??????????????? | | ?????????????????????????????????????????????????? | | ?????????????????????????????????????????????????? | | ?????????????????????????????????????????????????? | | ?????????????????????????????????????????????????? | | ?????????????????????????????????????????????????? | | ?????????????????????????????????????????????????? | | ?????????????????????????????????????????????????? | +----------------------------------------------------+ Best States ------------- Heat Dissipation 31 Energy Generation 14 Energy Capacity 280 Matter Stores 300 Matter Capacity 300 Sight Range 16 Robot Scan Range 14 Terrain Scan Density 10 Armor Coverage 225 Resistance: KI 20 Evasion (%) 55 Targeting Accuracy 14 Recoil Reduction 3 Offensive Hacking 10 Item Schematics ----------------- System Restoration Module | -9/Storage | Hacked Titanium Leg | -9/Storage | Hacked Robot Schematics ------------------ None Fabricated ------------ Nothing Repaired ---------- Sensor Array | 30% | -9/Materials Imp. Ion Engine | 10% | -9/Storage | Broken Studied --------- None Alien Tech Used ----------------- None Achievements -------------- A New Friend Heavy Suspicion Hey, That's Mine! Librarian Throw Away The Key Challenges ------------ None Game ------ Seed BlanketThunderProjector Manual? 0 Play Time 00:57:01 Cumulative 14.2 hours Start 2026.06.26 @ 10:24:30 End 2026.06.26 @ 11:45:44 Sessions 2 Manual Loads 0 Difficulty Rogue Special Mode None Game No. 32 Rogue 32 Adventurer 0 Explorer 0 Win Type - Total 0 Types 0/0/0/0/0/0/0/0/0/0 Lore% 3 Gallery% 14 Achievement% 10 Wizard Run 0 Options --------- Layout 1 ASCII 0 Keyboard 0 Movement Arrows Keybinds 0 Fullscreen 1 Font 36/Smallcaps Map View 51x40 Zoom Use 0% Tactical HUD 1 Map Filters NONE Filters NONE Steam 1 RUN: 28885245-10ee-430a-a11c-af9fcb04fe91